bitfinex/quotes_SOLUSD_20250712
["timestamp","ask_amount","ask_price","bid_price","bid_amount"]
[1752296613496,3.82582613,162.24,162.23,0.7]
[1752296614192,10.01182613,162.25,162.23,0.7]
[1752296617092,10.67182613,162.25,162.21,32.68]
[1752296617293,3.82582613,162.22,162.21,31.98]
[1752296617475,4.48582613,162.22,162.21,31.98]
[1752296618897,3.82582613,162.22,162.21,31.98]
[1752296622498,3.82582613,162.23,162.21,32.68]
[1752296624406,3.82582613,162.23,162.21,31.98]
[1752296625803,0.69,162.22,162.21,31.98]
[1752296626102,4.51582613,162.22,162.21,31.98]
[1752296629908,4.51582613,162.22,162.21,0.1]
[1752296631821,0.69,162.22,162.18,31.8]
[1752296631990,3.82582613,162.21,162.18,31.8]
[1752296632408,3.82582613,162.2,162.18,31.8]
[1752296632608,4.51582613,162.19,162.16,0.06]
[1752296632916,3.82582613,162.17,162.16,0.06]
[1752296633390,4.51582613,162.17,162.16,0.06]
[1752296635396,3.82582613,162.17,162.16,0.06]
[1752296636002,10.18212613,162.2,162.16,0.72]
[1752296636203,3.82582613,162.21,162.17,31.78]
[1752296636514,3.82582613,162.21,162.18,0.66]
[1752296636515,4.51582613,162.21,162.18,0.66]
[1752296638212,0.69,162.21,162.18,0.66]
[1752296638394,4.51582613,162.21,162.18,0.66]
[1752296639816,3.82582613,162.21,162.18,0.66]
[1752296640709,10.69652613,162.24,162.19,0.66]
[1752296640914,3.82582613,162.23,162.19,0.66]
[1752296641115,4.51582613,162.23,162.19,0.66]
[1752296641302,0.69,162.23,162.2,0.66]
[1752296641504,10.00652613,162.24,162.2,0.66]
[1752296641819,0.03,162.24,162.21,32.44]
[1752296642008,0.03,162.24,162.22,0.66]
[1752296644423,0.03,162.24,162.23,0.66]
[1752296646101,0.03,162.24,162.23,4.48582613]
[1752296646707,0.03,162.24,162.23,0.66]
[1752296651326,0.03,162.24,162.21,32.44]
[1752296652026,3.85582613,162.24,162.21,31.78]
[1752296652218,4.51582613,162.23,162.21,31.78]
[1752296653331,3.82582613,162.23,162.21,31.78]
[1752296653631,4.51582613,162.23,162.21,31.78]
[1752296654033,0.69,162.23,162.21,31.78]
[1752296654526,0.72,162.24,162.21,32.44]
[1752296654727,0.03,162.24,162.22,4.48582613]
[1752296654909,0.03,162.24,162.22,3.82582613]
[1752296655110,0.03,162.24,162.23,0.66]
[1752296655309,0.03,162.24,162.23,4.48582613]
[1752296655933,0.03,162.24,162.23,0.66]
[1752296656443,0.03,162.24,162.21,36.26582613]
[1752296656730,0.03,162.24,162.21,32.44]
[1752296657134,0.72,162.24,162.21,32.44]
[1752296657311,0.72,162.24,162.21,31.78]
[1752296657919,4.54582613,162.24,162.21,31.78]
[1752296658443,4.54582613,162.24,162.21,32.44]
[1752296658937,0.03,162.24,162.22,0.66]
[1752296659629,0.72,162.24,162.21,31.78]
[1752296659829,0.72,162.24,162.21,32.44]
[1752296660737,0.72,162.24,162.21,31.78]
[1752296660918,4.51582613,162.23,162.21,31.78]
[1752296661419,0.69,162.22,162.21,31.78]
[1752296663429,3.82582613,162.23,162.21,31.78]
[1752296663625,6.12672613,162.24,162.21,31.78]
[1752296665045,3.82582613,162.23,162.21,31.78]
[1752296665646,4.51582613,162.23,162.21,31.78]
[1752296666447,6.12672613,162.24,162.21,31.78]
[1752296667438,4.51582613,162.23,162.21,31.78]
[1752296669053,3.82582613,162.23,162.21,31.78]
[1752296669230,2.3009,162.24,162.21,31.78]
[1752296669421,5.43672613,162.24,162.21,32.44]
[1752296669625,6.12672613,162.24,162.21,32.44]
[1752296669824,1.6109,162.24,162.22,0.66]
[1752296670048,0.03,162.24,162.23,0.66]
[1752296670836,0.03,162.24,162.22,0.66]
[1752296671933,0.03,162.24,162.23,0.66]
[1752296672434,0.03,162.24,162.21,32.44]
[1752296674162,0.03,162.24,162.22,0.66]
[1752296674535,0.03,162.24,162.23,0.66]
[1752296675136,0.03,162.24,162.23,4.48582613]
[1752296676747,0.03,162.24,162.21,36.26582613]
[1752296676951,0.03,162.24,162.22,0.66]
[1752296678657,0.03,162.24,162.21,31.78]
[1752296678853,4.54582613,162.24,162.21,31.78]
[1752296679049,4.51582613,162.23,162.21,31.78]
[1752296679356,4.51582613,162.22,162.19,31.7]
[1752296682555,3.82582613,162.22,162.19,31.7]
[1752296682860,3.82582613,162.2,162.19,31.7]
[1752296683658,0.69,162.21,162.19,31.7]
[1752296683842,4.51582613,162.21,162.19,31.7]
[1752296684636,4.53582613,162.2,162.19,31.7]
[1752296684843,3.82582613,162.21,162.19,31.7]
[1752296685244,0.71,162.21,162.19,31.7]
[1752296685460,4.53582613,162.21,162.19,31.7]
[1752296688063,3.82582613,162.21,162.19,31.7]
[1752296688260,7.9365,162.22,162.18,0.06]
[1752296688261,4.53582613,162.2,162.18,0.06]
[1752296688463,3.82582613,162.19,162.18,0.06]
[1752296688851,4.53582613,162.19,162.18,0.06]
[1752296690364,3.82582613,162.19,162.18,0.06]
[1752296692673,4.53582613,162.19,162.18,0.06]
[1752296696776,3.82582613,162.19,162.18,0.71]
[1752296696980,11.76232613,162.22,162.18,0.71]
[1752296697157,11.76232613,162.22,162.18,0.06]
[1752296697478,12.47232613,162.22,162.19,0.65]
[1752296699281,4.56582613,162.24,162.2,31.68]
[1752296699473,4.56582613,162.24,162.2,32.33]
[1752296700275,4.53582613,162.23,162.2,32.33]
[1752296701184,3.82582613,162.23,162.2,32.33]
[1752296701558,4.53582613,162.23,162.2,32.33]
[1752296703094,3.82582613,162.21,162.2,31.68]
[1752296703383,4.53582613,162.21,162.18,0.06]
[1752296703564,3.82582613,162.19,162.18,0.06]
[1752296704066,4.53582613,162.19,162.18,0.06]
[1752296708386,0.71,162.19,162.18,0.06]
[1752296708692,4.53582613,162.19,162.18,0.06]
[1752296708889,8.8099,162.2,162.18,0.06]
[1752296709085,3.82582613,162.19,162.18,0.06]
[1752296709272,4.53582613,162.19,162.18,0.06]
[1752296713286,3.82582613,162.19,162.18,0.06]
[1752296713492,11.92572613,162.2,162.18,0.06]
[1752296713880,12.63572613,162.2,162.18,0.06]
[1752296717997,8.8099,162.2,162.18,0.06]
[1752296718216,3.82582613,162.2,162.18,0.72]
[1752296719996,3.82582613,162.21,162.19,0.66]
[1752296720311,3.82582613,162.22,162.19,0.66]
[1752296720493,4.49582613,162.23,162.2,0.66]
[1752296720994,4.49582613,162.23,162.19,31.66]
[1752296721198,3.82582613,162.22,162.19,32.32]
[1752296724208,4.49582613,162.23,162.2,0.66]
[1752296724802,3.85582613,162.24,162.21,0.66]
[1752296725003,0.03,162.24,162.22,0.66]
[1752296728503,0.03,162.24,162.23,0.66]
[1752296730909,0.03,162.24,162.22,4.48582613]
[1752296731716,0.03,162.24,162.23,31.62]
[1752296733312,0.7,162.24,162.23,31.62]
[1752296737008,4.52582613,162.24,162.2,31.62]
[1752296737320,4.49582613,162.23,162.2,31.62]
[1752296737615,3.82582613,162.21,162.2,31.62]
[1752296738123,4.49582613,162.21,162.2,31.62]
[1752296738594,4.49582613,162.21,162.18,0.06]
[1752296738797,4.49582613,162.2,162.18,0.06]
[1752296739418,0.67,162.19,162.18,0.06]
[1752296739812,4.49582613,162.2,162.18,0.06]
[1752296742221,3.82582613,162.19,162.18,0.06]
[1752296742412,4.49582613,162.19,162.18,0.06]
[1752296745530,0.67,162.19,162.18,0.06]
[1752296745836,4.49582613,162.19,162.18,0.06]
[1752296751833,3.85582613,162.19,162.18,0.06]
[1752296754432,4.55582613,162.19,162.18,0.06]
[1752296757222,0.73,162.19,162.18,0.06]
[1752296757542,4.55582613,162.19,162.18,0.06]
[1752296760840,3.17924344,162.19,162.18,0.06]
[1752296762522,19.96392741,162.19,162.18,0.06]
[1752296762727,16.78468397,162.18,162.16,0.06]
[1752296762941,26.0,162.15,162.14,0.1]
[1752296763124,28.44924344,162.15,162.14,0.1]
[1752296763443,29.14924344,162.15,162.14,0.1]
[1752296764233,19.93392741,162.15,162.14,0.1]
[1752296764838,21.31598724,162.15,162.14,0.1]
[1752296767858,17.48468397,162.15,162.14,0.1]
[1752296768038,4.53130327,162.15,162.14,0.1]
[1752296769941,30.53130327,162.15,162.14,0.1]
[1752296770144,47.31598724,162.15,162.14,0.1]
[1752296774573,78.89598724,162.15,162.14,0.1]
[1752296778268,16.78468397,162.14,162.13,0.06]
[1752296778571,26.0,162.11,162.1,0.1]
[1752296778772,29.83130327,162.11,162.1,0.1]
[1752296779081,30.48130327,162.11,162.1,0.1]
[1752296779992,29.83130327,162.11,162.1,0.1]
[1752296780358,30.48130327,162.11,162.1,0.1]
[1752296780982,29.83130327,162.11,162.1,0.1]
[1752296781361,30.48130327,162.11,162.1,0.1]
[1752296781577,30.98130327,162.11,162.1,0.1]
[1752296782679,4.98130327,162.11,162.1,0.1]
[1752296783066,29.56528724,162.11,162.1,0.1]
[1752296783677,42.78468397,162.1,162.09,0.06]
[1752296783990,78.84598724,162.1,162.09,0.06]
[1752296784696,30.48130327,162.1,162.09,0.06]
[1752296784986,62.06130327,162.1,162.09,0.06]
[1752296788392,58.23,162.1,162.09,0.06]
[1752296788596,62.06130327,162.1,162.09,0.06]
[1752296790788,52.84598724,162.1,162.09,0.06]
[1752296791103,16.78468397,162.09,162.08,0.06]
[1752296791307,25.09729051,162.09,162.08,0.06]
[1752296792176,26.0,162.06,162.04,0.1]
[1752296792399,29.83130327,162.05,162.04,0.1]
[1752296792605,30.48130327,162.05,162.04,0.1]
[1752296792983,4.48130327,162.05,162.04,0.1]
[1752296793387,21.26598724,162.05,162.04,0.1]
[1752296802722,52.84598724,162.05,162.04,0.1]
[1752296802920,16.78468397,162.04,162.03,0.1]
[1752296803124,21.26598724,162.04,162.03,0.1]
[1752296803309,52.84598724,162.04,162.03,0.1]
[1752296806646,52.90598724,162.04,162.03,0.1]
[1752296817147,52.93598724,162.04,162.03,0.1]
[1752296817532,55.40352324,162.04,162.03,0.1]
[1752296817850,52.93598724,162.04,162.03,0.1]
[1752296818238,55.40352424,162.04,162.03,0.1]
[1752296818454,52.93598724,162.04,162.03,0.1]
[1752296820131,49.10468397,162.04,162.03,0.1]
[1752296820450,52.93598724,162.04,162.03,0.1]
[1752296825658,49.10468397,162.04,162.03,0.1]
[1752296825953,52.93598724,162.04,162.03,0.1]
[1752296828672,52.91598724,162.04,162.03,0.1]
[1752296830856,51.53964827,162.04,162.03,0.1]
[1752296831765,26.0,161.98,161.97,0.78]
[1752296832062,31.56,161.99,161.98,0.68]
[1752296833167,34.0149643,161.99,161.98,0.68]
[1752296833965,31.56,161.99,161.98,0.68]
[1752296834144,34.0149643,161.99,161.98,0.68]
[1752296835142,31.56,161.99,161.98,0.68]
[1752296835348,34.0149643,161.99,161.98,0.68]
[1752296836263,34.0149643,161.99,161.97,0.78]
[1752296836463,2.4549643,161.98,161.97,0.78]
[1752296841148,31.56,161.99,161.97,0.78]
[1752296841352,2.4549643,161.98,161.97,0.1]
[1752296841848,2.4549643,161.98,161.97,0.78]
[1752296842668,28.4549643,161.98,161.97,0.78]
[1752296843563,26.0,162.0,161.97,0.78]
[1752296843871,16.78468397,162.03,161.97,0.78]
[1752296843872,28.4549643,161.99,161.97,0.78]
[1752296844074,26.0,161.99,161.97,0.78]
[1752296844441,28.4549643,162.0,161.97,0.78]
[1752296844865,2.4549643,161.99,161.97,0.78]
[1752296845566,2.4549643,161.98,161.97,0.78]
[1752296846154,2.4549643,161.98,161.97,0.1]
[1752296847375,3.1449643,161.98,161.97,0.1]
[1752296847871,19.92964827,161.98,161.97,0.1]
[1752296848242,51.48964827,161.98,161.97,0.1]
[1752296848447,34.0149643,161.98,161.97,0.1]
[1752296848646,2.4549643,161.98,161.97,0.78]
[1752296850253,2.4549643,161.98,161.97,0.1]
[1752296850668,2.4549643,161.98,161.97,0.78]
[1752296850861,2.4549643,161.98,161.97,0.1]
[1752296851067,2.4549643,161.98,161.97,0.78]
[1752296851572,28.4549643,161.98,161.97,0.78]
[1752296851968,26.0,161.98,161.97,0.78]
[1752296852167,28.4549643,161.98,161.97,0.78]
[1752296852970,28.4549643,161.98,161.97,0.1]
[1752296856186,29.1449643,161.98,161.97,0.1]
[1752296857185,26.69,161.98,161.97,0.1]
[1752296857483,29.1449643,161.98,161.97,0.1]
[1752296858193,28.4549643,161.98,161.97,0.1]
[1752296858667,19.92964827,161.98,161.97,0.1]
[1752296859288,22.95298513,161.98,161.97,0.1]
[1752296860982,45.92964827,161.98,161.97,0.1]
[1752296863482,26.0,161.98,161.97,0.78]
[1752296863665,2.4549643,161.99,161.97,0.78]
[1752296863867,33.9949643,161.99,161.97,0.78]
[1752296864175,2.4549643,161.99,161.97,0.78]
[1752296864479,26.0,162.0,161.97,0.78]
[1752296864680,2.4549643,161.98,161.97,0.1]
[1752296865287,2.4549643,161.98,161.97,0.79]
[1752296865583,2.4549643,161.99,161.97,0.79]
[1752296865784,2.4549643,161.99,161.98,0.69]
[1752296866881,2.4549643,161.99,161.97,0.79]
[1752296867472,2.4549643,161.99,161.98,0.69]
[1752296868084,26.0,162.0,161.98,0.69]
[1752296868380,26.0,162.02,161.99,0.69]
[1752296868566,2.4549643,162.02,161.99,0.69]
[1752296868767,2.4549643,162.01,161.99,0.69]
[1752296869588,2.4549643,162.01,161.98,0.69]
[1752296869788,26.0,162.02,161.98,0.69]
[1752296869985,28.4549643,162.02,161.98,0.69]
[1752296870490,0.03,162.03,162.01,2.4549643]
[1752296870668,0.03,162.03,162.02,2.4549643]
[1752296870868,0.03,162.03,162.02,4.52262707]
[1752296874678,0.03,162.03,162.02,0.69]
[1752296876679,0.03,162.03,162.02,4.52262707]
[1752296877079,0.03,162.03,162.02,0.69]
[1752296877278,0.03,162.03,162.02,4.52262707]
[1752296877896,0.03,162.03,162.02,0.69]
[1752296878104,0.03,162.03,162.02,4.52262707]
[1752296880874,0.03,162.03,162.02,0.69]
[1752296881387,0.03,162.03,162.02,4.52262707]
[1752296886502,0.03,162.03,162.02,0.69]
[1752296887480,4.56262707,162.03,161.98,89.1]
[1752296887680,3.83262707,162.02,161.99,0.69]
[1752296888283,3.83262707,162.02,162.0,0.69]
[1752296889096,3.86262707,162.03,162.0,0.69]
[1752296889310,3.86262707,162.03,161.98,92.93262707]
[1752296889484,3.86262707,162.03,162.01,0.69]
[1752296889885,3.86262707,162.03,161.99,3.83262707]
[1752296890085,0.03,162.03,162.02,0.69]
[1752296890495,0.03,162.03,162.01,0.69]
[1752296891987,0.03,162.03,162.02,0.69]
[1752296893327,0.03,162.03,162.01,0.69]
[1752296893839,3.86262707,162.03,162.01,0.69]
[1752296893996,3.83262707,162.02,161.99,0.72]
[1752296894197,3.83262707,162.0,161.97,0.1]
[1752296894390,3.83262707,162.0,161.98,0.72]
[1752296895204,4.55262707,162.0,161.97,0.1]
[1752296895401,4.55262707,161.99,161.97,0.1]
[1752296896615,3.83262707,162.0,161.97,0.1]
[1752296897133,4.55262707,162.0,161.97,0.82]
[1752296899210,3.83262707,161.99,161.97,0.1]
[1752296899747,0.72,162.02,161.98,0.72]
[1752296899920,3.83262707,162.01,161.97,0.1]
[1752296900312,3.83262707,162.0,161.97,0.82]
[1752296901509,3.83262707,162.01,161.97,0.82]
[1752296901835,4.55262707,162.01,161.98,0.72]
[1752296902005,0.72,162.01,161.98,0.72]
[1752296902206,4.55262707,162.01,161.98,0.72]
[1752296902421,3.83262707,162.01,161.97,0.1]
[1752296902649,3.83262707,161.99,161.97,0.1]
[1752296902839,4.55262707,161.99,161.97,0.1]
[1752296903151,0.72,161.98,161.97,0.1]
[1752296903519,12.47622707,161.98,161.97,0.1]
[1752296903728,55.26091104,161.98,161.97,0.1]
[1752296903922,51.42828397,161.98,161.97,0.1]
[1752296904249,55.26091104,161.98,161.97,0.1]
[1752296904623,60.07384914,161.98,161.97,0.1]
[1752296905649,55.26091104,161.98,161.97,0.1]
[1752296911022,38.47622707,161.98,161.97,0.1]
[1752296916731,69.97622707,161.98,161.97,0.1]
[1752296930260,69.95622707,161.98,161.97,0.1]
[1752296932268,66.1236,161.98,161.97,0.1]
[1752296932446,69.25622707,161.98,161.97,0.1]
[1752296932644,3.83262707,161.98,161.97,0.8]
[1752296934967,3.83262707,161.98,161.97,0.1]
[1752296936044,3.83262707,161.98,161.97,0.8]
[1752296939868,3.83262707,161.98,161.97,0.1]
[1752296941763,3.83262707,161.98,161.97,0.8]
[1752296943073,3.83262707,161.98,161.97,0.1]
[1752296943461,85.02781104,161.98,161.97,0.1]
[1752296943773,3.83262707,161.92,161.86,4.70942707]
[1752296943971,3.83262707,161.92,161.87,3.93262707]
[1752296944574,3.83262707,161.91,161.88,0.7]
[1752296945862,3.83262707,161.93,161.88,4.53262707]
[1752296946057,3.83262707,161.93,161.88,3.53262707]
[1752296948054,3.83262707,161.93,161.89,0.61]
[1752296948561,3.83262707,161.92,161.9,0.61]
[1752296949573,3.83262707,161.92,161.87,0.1]
[1752296949574,3.83262707,161.94,161.91,0.61]
[1752296949760,3.83262707,161.94,161.89,3.83262707]
[1752296949957,3.83262707,161.94,161.9,0.61]
[1752296950770,3.83262707,161.94,161.91,0.61]
[1752296953178,4.53262707,161.94,161.91,0.61]
[1752296953369,3.83262707,161.94,161.89,4.44262707]
[1752296953573,0.7,161.93,161.89,4.44262707]
[1752296953782,4.53262707,161.93,161.89,0.61]
[1752296953978,4.49262707,161.92,161.87,17.49468397]
[1752296954183,4.49262707,161.92,161.88,0.61]
[1752296954870,0.66,161.93,161.89,0.61]
[1752296955068,3.83262707,161.92,161.9,0.61]
[1752296955272,4.49262707,161.93,161.9,0.61]
[1752296955884,3.83262707,161.93,161.9,0.61]
[1752296957084,4.49262707,161.93,161.9,0.61]
[1752296957771,3.83262707,161.92,161.89,0.61]
[1752296958163,3.83262707,161.91,161.87,17.49468397]
[1752296958373,3.83262707,161.92,161.88,0.61]
[1752296958582,0.66,161.94,161.88,0.61]
[1752296958784,3.83262707,161.92,161.88,0.61]
[1752296959786,0.66,161.94,161.88,4.44262707]
[1752296960085,3.83262707,161.93,161.89,0.61]
[1752296960281,3.83262707,161.93,161.88,3.83262707]
[1752296960482,4.49262707,161.93,161.89,0.61]
[1752296960682,1.5584,161.97,161.87,0.1]
[1752296960683,0.66,161.92,161.87,0.1]
[1752296960987,0.66,161.92,161.87,0.71]
[1752296960988,3.83262707,161.91,161.87,0.71]
[1752296961169,3.83262707,161.92,161.87,4.54262707]
[1752296961369,3.83262707,161.92,161.87,3.93262707]
[1752296961571,3.83262707,161.92,161.88,0.61]
[1752296961769,3.83262707,161.92,161.89,0.61]
[1752296962288,4.49262707,161.93,161.89,0.61]
[1752296963399,0.66,161.92,161.89,0.61]
[1752296964177,0.66,161.92,161.87,0.1]
[1752296964374,4.49262707,161.92,161.87,0.1]
[1752296964688,4.49262707,161.92,161.88,0.61]
[1752296964992,3.83262707,161.92,161.88,0.61]
[1752296965195,0.66,161.91,161.87,0.1]
[1752296965493,0.66,161.91,161.87,0.71]
[1752296966475,0.66,161.9,161.87,0.1]
[1752296966997,0.66,161.89,161.87,0.1]
[1752296967200,4.49262707,161.9,161.87,0.1]
[1752296967575,0.66,161.9,161.87,0.1]
[1752296967996,4.49262707,161.91,161.87,0.71]
[1752296968490,10.88022707,161.93,161.88,0.61]
[1752296968667,0.66,161.92,161.87,3.93262707]
[1752296968870,4.49262707,161.92,161.87,4.54262707]
[1752296969070,0.66,161.91,161.87,4.54262707]
[1752296969597,3.83262707,161.93,161.88,4.44262707]
[1752296969773,4.49262707,161.93,161.89,0.61]
[1752296970596,3.83262707,161.93,161.89,0.61]
[1752296970894,0.66,161.92,161.89,0.61]
[1752296971798,0.66,161.91,161.88,0.61]
[1752296972294,0.66,161.91,161.87,4.54262707]
[1752296973503,0.66,161.9,161.87,0.1]
[1752296973689,26.0,161.94,161.87,0.1]
[1752296973998,0.66,161.95,161.9,3.83262707]
[1752296974202,0.66,161.95,161.91,0.61]
[1752296975373,0.66,161.94,161.9,4.44262707]
[1752296975573,0.66,161.94,161.88,120.56]
[1752296975817,4.49262707,161.94,161.89,3.83262707]
[1752296976098,0.66,161.93,161.89,3.83262707]
[1752296976295,34.0295,161.97,161.88,125.00262707]
[1752296976296,0.66,161.92,161.88,125.00262707]
[1752296976500,0.66,161.91,161.88,121.17]
[1752296976674,0.66,161.91,161.88,32.07]
[1752296978007,4.49262707,161.93,161.88,32.07]
[1752296978308,4.49262707,161.93,161.89,0.61]
[1752296979101,0.66,161.92,161.88,31.46]
[1752296979305,0.66,161.92,161.88,32.07]
[1752296980503,4.49262707,161.92,161.88,32.07]
[1752296980691,0.66,161.91,161.88,31.46]
[1752296980889,0.66,161.9,161.88,31.46]
[1752296981581,0.66,161.89,161.88,31.46]
[1752296982085,0.66,161.89,161.87,0.1]
[1752296983507,3.83262707,161.9,161.87,0.1]
[1752296983804,4.49262707,161.9,161.87,0.1]
[1752296984185,4.55262707,161.92,161.88,0.61]
[1752296984784,0.72,161.92,161.88,4.44262707]
[1752296985507,0.72,161.91,161.88,3.83262707]
[1752296985900,0.72,161.91,161.87,0.71]
[1752296986104,0.72,161.91,161.87,4.54262707]
[1752296986783,4.55262707,161.91,161.87,0.1]
[1752296986995,0.72,161.9,161.87,0.1]
[1752296987399,0.72,161.89,161.87,0.1]
[1752296995708,0.72,161.9,161.87,0.1]
[1752296996506,3.83262707,161.91,161.87,0.1]
[1752296996714,0.72,161.89,161.87,0.1]
[1752296997712,0.72,161.9,161.87,0.1]
[1752296999704,4.55262707,161.9,161.87,0.1]
[1752296999906,0.72,161.89,161.87,0.1]
[1752297000098,0.72,161.88,161.87,0.1]
[1752297000299,0.72,161.9,161.87,0.1]
[1752297000705,0.72,161.89,161.87,0.1]
[1752297000898,0.72,161.9,161.87,0.1]
[1752297002007,4.55262707,161.91,161.87,0.71]
[1752297002316,0.72,161.91,161.88,0.61]
[1752297002710,0.75,161.92,161.88,4.44262707]
[1752297002910,0.03,161.92,161.89,0.61]
[1752297003094,3.83262707,161.9,161.87,0.1]
[1752297003291,0.72,161.89,161.87,0.1]
[1752297003507,0.72,161.9,161.87,0.1]
[1752297003709,10.94522707,161.92,161.87,4.54262707]
[1752297003942,0.72,161.91,161.87,4.54262707]
[1752297004896,0.72,161.91,161.87,0.71]
[1752297005412,0.72,161.91,161.87,4.54262707]
[1752297006323,0.72,161.9,161.87,0.1]
[1752297007002,0.72,161.9,161.87,0.71]
[1752297007202,10.94522707,161.92,161.87,0.71]
[1752297007406,0.72,161.91,161.87,0.71]
[1752297014019,10.22522707,161.92,161.88,4.44262707]
[1752297014020,0.03,161.92,161.88,4.44262707]
[1752297014199,0.69,161.92,161.88,4.44262707]
[1752297014403,0.03,161.92,161.89,0.61]
[1752297015023,0.03,161.92,161.89,3.83262707]
[1752297015199,0.69,161.92,161.89,3.83262707]
[1752297015405,0.66,161.91,161.87,3.93262707]
[1752297015605,0.66,161.91,161.88,3.83262707]
[1752297016127,0.66,161.91,161.88,4.44262707]
[1752297017321,0.03,161.92,161.88,4.44262707]
[1752297017521,0.69,161.92,161.88,4.44262707]
[1752297020032,0.03,161.92,161.9,3.83262707]
[1752297020337,0.03,161.92,161.9,4.44262707]
[1752297021144,0.03,161.92,161.91,0.61]
[1752297021631,0.03,161.92,161.9,3.83262707]
[1752297021832,0.03,161.92,161.9,4.44262707]
[1752297022329,0.03,161.92,161.9,0.61]
[1752297022535,0.03,161.92,161.9,4.44262707]
[1752297022713,0.66,161.91,161.87,35.98262707]
[1752297023635,0.66,161.91,161.88,3.83262707]
[1752297026010,0.03,161.92,161.88,3.83262707]
[1752297026217,0.03,161.92,161.89,0.61]
[1752297026409,0.69,161.92,161.89,0.61]
[1752297026719,0.69,161.92,161.88,4.44262707]
[1752297028740,0.03,161.92,161.9,3.83262707]
[1752297028937,0.03,161.92,161.9,4.44262707]
[1752297029338,0.03,161.92,161.91,3.83262707]
[1752297029720,0.03,161.92,161.9,32.05]
[1752297029924,0.03,161.92,161.9,35.88262707]
[1752297032541,0.03,161.92,161.91,4.44262707]
[1752297034546,0.03,161.92,161.9,32.05]
[1752297034738,0.03,161.92,161.9,31.44]
[1752297034739,0.69,161.92,161.9,31.44]
[1752297034914,0.03,161.92,161.9,35.27262707]
[1752297035116,0.03,161.92,161.91,3.83262707]
[1752297035336,0.03,161.92,161.9,35.88262707]
[1752297036044,0.03,161.92,161.91,0.61]
[1752297036644,0.03,161.92,161.91,21.22731104]
[1752297036943,0.03,161.92,161.91,25.05993811]
[1752297037144,0.03,161.92,161.91,114.15993811]
[1752297040144,2.319,162.01,161.95,42.78468397]
[1752297040350,0.66,162.0,161.97,3.83262707]
[1752297040649,0.66,162.0,161.98,31.42]
[1752297041020,1.659,162.01,161.98,35.25262707]
[1752297041251,2.319,162.01,161.98,35.25262707]
[1752297045351,2.319,162.01,161.98,31.42]
[1752297045640,2.319,162.01,161.98,35.25262707]
[1752297046030,2.319,162.01,161.98,31.42]
[1752297046236,1.659,162.01,161.98,31.42]
[1752297046548,2.329,162.01,161.98,31.42]
[1752297046921,0.67,162.0,161.98,31.42]
[1752297049557,0.67,162.0,161.98,35.25262707]
[1752297050050,1.659,162.01,161.98,35.25262707]
[1752297050235,2.329,162.01,161.98,35.25262707]
[1752297050830,2.329,162.01,161.98,31.42]
[1752297051035,0.67,162.0,161.98,31.42]
[1752297051566,1.659,162.01,161.98,31.42]
[1752297051567,2.329,162.01,161.98,31.42]